bitfinex/quotes_ETHUSD_20251108
["timestamp","ask_amount","ask_price","bid_price","bid_amount"]
[1762565446321,2.91273447,3433.2,3433.1,0.005]
[1762565446524,3.31823847,3433.2,3433.1,0.005]
[1762565446705,4.00623847,3433.2,3433.1,0.005]
[1762565447041,5.26595047,3433.2,3433.1,0.005]
[1762565447404,5.26595047,3433.2,3433.1,0.4686]
[1762565447621,6.14610742,3433.2,3433.1,0.4686]
[1762565448896,6.39510742,3433.2,3433.1,0.005]
[1762565449313,6.87740742,3433.2,3433.1,0.005]
[1762565450609,6.39510742,3433.2,3433.1,0.005]
[1762565451139,3.3187476,3432.6,3432.5,0.4748]
[1762565451524,3.3187476,3432.6,3432.5,0.9384]
[1762565453846,0.405504,3432.6,3432.5,0.9384]
[1762565454462,3.3187476,3432.6,3432.5,0.9384]
[1762565455346,3.3187476,3432.6,3432.5,0.4636]
[1762565455548,3.3187476,3432.6,3432.5,0.9384]
[1762565458474,0.405504,3432.6,3432.5,0.9384]
[1762565458616,2.9129965,3432.9,3432.5,0.9384]
[1762565458823,0.1456,3432.5,3432.4,0.001]
[1762565459069,0.1456,3432.5,3432.4,2.91441335]
[1762565459275,0.1456,3432.5,3432.4,4.48449045]
[1762565459432,0.1456,3432.5,3432.4,1.54194297]
[1762565459941,0.1456,3432.5,3432.4,0.9394]
[1762565460140,0.1456,3432.5,3432.4,3.75281335]
[1762565460368,0.1456,3432.5,3432.4,0.8394]
[1762565463642,0.1456,3432.5,3432.4,3.75281335]
[1762565463850,0.1456,3432.5,3432.4,3.78194748]
[1762565464044,0.1456,3432.5,3432.4,4.44210824]
[1762565466187,0.1456,3433.0,3432.4,4.58770824]
[1762565466479,0.1456,3433.0,3432.9,2.91298901]
[1762565466664,0.1456,3433.0,3432.9,3.40958901]
[1762565466842,0.1456,3433.0,3432.9,4.51655583]
[1762565468441,0.405504,3433.9,3432.9,1.60356682]
[1762565468639,2.91399358,3434.1,3433.8,0.6861]
[1762565468840,4.17368311,3434.1,3434.0,0.4966]
[1762565469181,4.17368311,3434.1,3433.0,0.4747]
[1762565469182,2.91233943,3433.7,3433.5,0.1895]
[1762565469376,0.1456,3433.5,3433.2,0.1895]
[1762565469576,2.9126128,3433.4,3433.2,0.1895]
[1762565469882,0.1456,3433.2,3432.8,0.4747]
[1762565470177,0.405504,3433.4,3432.8,0.4747]
[1762565470399,2.91298901,3432.9,3432.8,0.4747]
[1762565470543,0.1456,3432.8,3432.3,2.91051427]
[1762565470737,2.91296755,3433.0,3432.8,0.363]
[1762565471250,1.26186074,3433.4,3432.9,0.363]
[1762565471466,0.1456,3432.4,3432.1,0.006]
[1762565471682,0.1456,3432.4,3432.3,2.91349823]
[1762565471854,0.1456,3432.4,3432.3,0.363]
[1762565472369,2.91278438,3433.2,3432.4,2.91335104]
[1762565472537,0.65153542,3433.2,3432.6,0.363]
[1762565472741,2.9127957,3433.2,3432.6,0.363]
[1762565472942,2.91256984,3433.4,3433.1,0.363]
[1762565473242,0.002,3433.5,3433.1,0.363]
[1762565473243,1.667216,3433.5,3433.1,0.363]
[1762565473739,2.91262791,3433.4,3433.1,0.363]
[1762565473944,2.9125648,3433.4,3433.1,0.363]
[1762565474145,3.57373434,3433.4,3433.1,0.363]
[1762565474650,5.23895034,3433.4,3433.3,0.363]
[1762565474974,0.002,3433.5,3433.3,0.363]
[1762565475181,0.002,3433.5,3433.4,0.363]
[1762565475982,3.38687997,3433.5,3432.8,0.363]
[1762565476182,0.002,3433.5,3433.4,0.363]
[1762565476895,2.91447997,3433.5,3433.4,0.363]
[1762565478597,0.002,3433.5,3433.4,0.363]
[1762565480995,0.002,3433.5,3433.4,0.726]
[1762565481195,0.002,3433.5,3433.4,3.6385648]
[1762565481774,0.002,3433.5,3433.4,3.66769044]
[1762565482359,0.1476,3433.5,3433.4,3.66769044]
[1762565482565,0.1476,3433.5,3433.4,3.6385648]
[1762565483097,0.1476,3433.5,3433.4,0.726]
[1762565484194,0.1476,3433.5,3433.4,3.6385648]
[1762565484385,0.1476,3433.5,3433.4,0.726]
[1762565485100,0.002,3433.5,3433.4,3.6385648]
[1762565485482,0.002,3433.5,3433.4,0.726]
[1762565485890,0.002,3433.5,3433.4,0.363]
[1762565487464,0.002,3433.5,3433.0,2.91285155]
[1762565487681,0.002,3433.5,3432.3,1.259712]
[1762565487905,2.91453868,3433.5,3432.8,2.91301398]
[1762565488467,2.91453868,3433.5,3432.6,3.27623518]
[1762565488468,2.91257346,3433.4,3432.9,2.91298829]
[1762565488807,2.91451546,3433.5,3432.9,2.91298829]
[1762565489004,0.002,3433.5,3433.0,2.91289993]
[1762565489305,0.002,3433.5,3433.4,0.363]
[1762565489809,0.002,3433.5,3433.4,3.2755648]
[1762565489982,0.002,3433.5,3433.4,3.66769044]
[1762565490316,0.002,3433.5,3433.4,4.32572582]
[1762565491120,0.002,3433.9,3433.8,2.91222552]
[1762565491296,0.002,3433.9,3433.8,3.27522552]
[1762565491487,0.002,3433.9,3433.8,3.63822552]
[1762565495227,0.002,3433.9,3433.8,5.04353752]
[1762565495532,0.002,3433.9,3433.8,5.83912301]
[1762565496509,0.002,3433.9,3433.8,5.47612301]
[1762565497106,0.002,3433.9,3433.8,5.83912301]
[1762565502668,0.4918,3433.9,3433.8,0.1456]
[1762565502865,0.002,3433.9,3433.8,3.27522552]
[1762565503047,0.002,3433.9,3433.8,3.63822552]
[1762565503500,0.002,3433.9,3433.8,4.30783956]
[1762565503760,0.405504,3433.8,3432.5,0.001]
[1762565503960,0.4537,3433.7,3432.5,0.001]
[1762565504119,0.405504,3433.6,3432.5,2.91431623]
[1762565504320,0.4894,3432.6,3432.5,0.001]
[1762565504524,0.6815,3432.6,3432.5,0.001]
[1762565504741,1.1616,3432.6,3432.5,0.001]
[1762565505121,4.88781769,3432.6,3432.5,0.001]
[1762565509576,0.4894,3432.6,3432.5,0.001]
[1762565510673,0.6722,3432.9,3432.5,0.001]
[1762565511754,3.58519024,3432.9,3432.5,0.001]
[1762565512081,2.91307949,3432.8,3432.5,0.001]
[1762565512675,0.6722,3432.9,3432.5,0.001]
[1762565513861,3.58523974,3432.9,3432.5,0.001]
[1762565514345,3.58526329,3432.9,3432.5,0.001]
[1762565514859,3.10511465,3432.9,3432.5,0.001]
[1762565515179,0.4898,3432.6,3432.5,0.001]
[1762565515883,0.9699,3432.6,3432.5,0.001]
[1762565516053,3.8831436,3432.6,3432.5,0.001]
[1762565516678,4.2886476,3432.6,3432.5,0.001]
[1762565517444,1.375404,3432.6,3432.5,0.001]
[1762565517665,5.0280157,3432.6,3432.5,0.001]
[1762565518879,4.6225117,3432.6,3432.5,0.001]
[1762565519080,3.10509734,3432.9,3432.5,0.364]
[1762565519292,0.4898,3432.6,3432.5,0.001]
[1762565519484,3.4030436,3432.6,3432.5,0.001]
[1762565519675,3.8831436,3432.6,3432.5,0.001]
[1762565519982,4.2886476,3432.6,3432.5,0.001]
[1762565520192,5.02803085,3432.6,3432.5,0.001]
[1762565520576,5.71603085,3432.6,3432.5,0.001]
[1762565520902,6.59089469,3432.6,3432.5,0.001]
[1762565524965,5.72013085,3432.6,3432.5,0.001]
[1762565525782,12.54134544,3432.6,3432.5,0.001]
[1762565526316,3.31908712,3432.2,3432.1,0.006]
[1762565526527,5.70799912,3432.2,3432.1,0.006]
[1762565526820,6.19219912,3432.2,3432.1,0.006]
[1762565527122,6.37859912,3432.2,3432.1,0.006]
[1762565530317,2.91443226,3431.2,3430.8,0.1864]
[1762565530517,3.81383626,3431.2,3430.5,0.0932]
[1762565530717,4.29803626,3431.2,3430.5,0.0932]
[1762565532013,3.31993626,3431.2,3430.5,0.4562]
[1762565532310,3.77413626,3431.2,3430.5,0.4562]
[1762565532559,3.77413626,3431.2,3430.5,0.0932]
[1762565532844,4.25833626,3431.2,3430.5,0.0932]
[1762565533051,5.13191834,3431.2,3430.5,0.0932]
[1762565533771,5.13191834,3431.2,3430.3,0.0932]
[1762565534941,5.13191834,3431.2,3430.3,3.0083808]
[1762565535123,5.13191834,3431.2,3430.3,0.0932]
[1762565535527,3.77413626,3431.2,3430.3,0.0932]
[1762565535769,1.947712,3431.8,3431.1,0.4612]
[1762565536081,3.36863226,3431.2,3431.1,0.005]
[1762565536409,2.91443226,3431.2,3431.1,0.005]
[1762565536613,2.91443226,3431.2,3431.1,0.368]
[1762565537100,0.11667369,3431.7,3431.1,0.368]
[1762565537302,0.688,3432.7,3431.6,0.363]
[1762565537457,0.4842,3432.6,3431.9,0.363]
[1762565537798,0.1456,3431.9,3431.2,2.91442524]
[1762565537971,0.1456,3431.7,3431.2,0.363]
[1762565538174,0.1456,3431.7,3431.3,0.363]
[1762565538368,0.1456,3431.7,3431.6,3.27709255]
[1762565538567,0.1456,3431.7,3431.6,1.0184355]
[1762565538805,0.1456,3431.7,3431.6,1.3814355]
[1762565539284,0.1456,3431.7,3431.6,4.29552805]
[1762565540684,1.947712,3432.4,3431.6,0.363]
[1762565540685,0.405504,3432.3,3431.6,0.363]
[1762565540889,0.4842,3432.2,3431.6,0.363]
[1762565541094,2.91363595,3432.2,3431.6,0.363]
[1762565541467,0.405504,3432.3,3431.6,0.363]
[1762565541468,2.91369107,3432.1,3431.6,0.363]
[1762565542115,0.405504,3432.4,3432.0,0.363]
[1762565542299,0.405504,3432.4,3432.3,0.363]
[1762565543073,1.259712,3432.6,3432.3,0.363]
[1762565543286,0.405504,3432.5,3432.3,0.363]
[1762565543802,0.405504,3432.5,3432.0,0.363]
[1762565543803,0.405504,3432.5,3432.4,0.363]
[1762565543981,0.002,3432.6,3432.4,0.363]
[1762565544182,0.002,3432.6,3432.5,0.726]
[1762565544383,0.002,3432.6,3432.5,4.32376006]
[1762565545787,0.002,3432.6,3432.5,5.58347206]
[1762565546304,0.002,3432.6,3432.5,5.55433878]
[1762565546706,0.002,3433.0,3432.9,2.91298901]
[1762565546940,0.002,3433.0,3432.9,3.27598901]
[1762565547124,0.002,3433.0,3432.9,4.61465067]
[1762565547284,0.002,3433.0,3432.9,4.58552078]
[1762565550738,0.002,3433.0,3432.9,1.81813177]
[1762565550958,0.002,3433.0,3432.9,3.42158901]
[1762565552801,0.002,3433.0,3432.9,3.78458901]
[1762565554307,0.002,3433.0,3432.9,3.63898901]
[1762565555710,0.002,3433.0,3432.9,3.27598901]
[1762565555911,0.002,3433.0,3432.9,3.63898901]
[1762565556254,0.002,3433.0,3432.9,4.29419636]
[1762565556953,0.002,3433.0,3432.9,4.32332625]
[1762565557516,0.002,3433.0,3432.9,4.29419636]
[1762565558249,0.002,3433.0,3432.9,4.32332625]
[1762565558450,0.002,3433.0,3432.9,4.29419636]
[1762565558838,0.002,3433.0,3432.9,4.32332625]
[1762565560720,0.002,3433.0,3432.9,5.55390836]
[1762565562738,0.002,3433.0,3432.9,5.58303825]
[1762565563235,0.002,3433.0,3432.9,6.41419568]
[1762565563636,0.002,3433.0,3432.9,5.55390836]
[1762565564338,0.002,3433.0,3432.9,5.69950836]
[1762565566466,0.002,3433.0,3432.9,5.72863825]
[1762565566670,0.002,3433.0,3432.9,6.18342157]
[1762565566834,0.002,3433.0,3432.9,6.15429168]
[1762565570673,1e-08,3433.4,3433.3,3.45234963]
[1762565570875,1e-08,3433.4,3433.3,6.73414553]
[1762565571288,0.002,3434.6,3434.0,4.17176791]
[1762565571599,0.002,3434.6,3434.0,4.56388846]
[1762565571737,0.002,3434.6,3434.0,4.92688846]
[1762565571944,0.002,3434.6,3434.0,5.68167131]
[1762565572383,0.002,3434.6,3434.4,3.31722074]
[1762565572583,1e-08,3434.6,3434.5,4.17134396]
[1762565572879,1e-08,3434.6,3434.5,4.89734396]
[1762565575946,1e-08,3434.6,3434.5,4.92646027]
[1762565576147,1e-08,3434.6,3434.5,5.96431557]
[1762565579348,1e-08,3434.6,3434.5,5.93519926]
[1762565580247,1e-08,3434.6,3434.5,5.96431557]
[1762565580448,1e-08,3434.6,3434.5,6.36981957]
[1762565580790,1e-08,3434.6,3434.5,6.34070326]
[1762565580992,1e-08,3434.9,3434.8,4.93959366]
[1762565581192,1e-08,3434.9,3434.8,5.75737698]
[1762565581394,1e-08,3434.9,3434.8,4.67888966]
[1762565581980,0.47080001,3434.9,3434.8,4.31588966]
[1762565582499,0.47080001,3434.9,3434.8,4.17108966]
[1762565582703,0.47080001,3434.9,3434.8,4.99102326]
[1762565583381,0.95660001,3434.9,3434.8,4.99102326]
[1762565583900,0.47080001,3434.9,3434.8,4.99102326]
[1762565584101,1e-08,3434.9,3434.8,4.99102326]
[1762565584604,1e-08,3434.9,3434.8,5.35402326]
[1762565585304,0.46720001,3434.9,3434.8,4.99102326]
[1762565586188,1e-08,3434.9,3434.8,4.99102326]
[1762565586382,1e-08,3434.9,3434.8,5.35402326]
[1762565587483,1e-08,3434.9,3434.8,4.99102326]
[1762565587679,1e-08,3434.9,3434.8,5.35402326]
[1762565589901,1e-08,3434.9,3434.8,4.99102326]
[1762565590522,1e-08,3434.9,3434.8,5.35402326]
[1762565590921,1e-08,3434.9,3434.8,9.14402326]
[1762565591440,0.66630001,3434.9,3434.8,8.78102326]
[1762565591736,1.15210001,3434.9,3434.8,4.17108966]
[1762565592504,1.15210001,3434.9,3434.8,4.31588966]
[1762565592925,1e-08,3434.9,3434.8,4.70800343]
[1762565593125,1e-08,3434.9,3434.8,5.54462211]
[1762565594314,1e-08,3434.9,3434.8,9.61492617]
[1762565594518,1e-08,3434.9,3434.8,10.43270949]
[1762565594734,1e-08,3434.9,3434.8,14.62821349]
[1762565596457,1e-08,3434.9,3434.8,19.08155143]
[1762565596755,1e-08,3434.9,3434.8,14.93390133]
[1762565596931,1e-08,3434.9,3434.8,15.22450133]
[1762565597317,0.00200001,3434.9,3434.8,13.33718133]
[1762565597515,0.00200001,3434.9,3434.8,14.38049843]
[1762565597721,0.00200001,3434.9,3434.8,12.42290943]
[1762565598060,0.00200001,3434.9,3434.8,11.72640543]
[1762565598355,0.46920001,3434.9,3434.8,3.77811011]
[1762565598721,0.46920001,3434.9,3434.8,5.03782211]
[1762565598923,0.46920001,3434.9,3434.8,3.77811011]
[1762565599123,0.46920001,3434.9,3434.8,5.03782211]
[1762565599431,0.46920001,3434.9,3434.8,3.77811011]
[1762565599621,0.00200001,3434.9,3434.8,5.03782211]
[1762565601240,0.00200001,3434.9,3434.8,5.40082211]
[1762565603028,0.00200001,3434.9,3434.8,9.8340232]
[1762565603260,0.00200001,3434.9,3434.8,9.80490943]
[1762565604678,0.00200001,3434.9,3434.8,6.26110943]
[1762565604878,0.00200001,3434.9,3434.8,6.62410943]
[1762565605251,0.00200001,3434.9,3434.8,9.68810943]
[1762565605445,0.00200001,3434.9,3434.8,5.49260543]
[1762565605642,0.46920001,3434.9,3434.8,5.03782211]
[1762565605963,1.15410001,3434.9,3434.8,5.03782211]
[1762565606336,0.66830001,3434.9,3434.8,5.03782211]
[1762565607369,1.15410001,3434.9,3434.8,5.03782211]
[1762565607743,0.66830001,3434.9,3434.8,5.03782211]
[1762565608283,0.00200001,3434.9,3434.8,5.18262211]
[1762565608487,0.46920001,3434.9,3434.8,5.18262211]
[1762565609028,0.66830001,3434.9,3434.8,5.18262211]
[1762565610035,0.00200001,3434.9,3434.8,5.18262211]
[1762565610653,0.46920001,3434.9,3434.8,5.18262211]
[1762565612659,0.95390001,3434.9,3434.8,5.18262211]
[1762565613191,0.46920001,3434.9,3434.8,5.18262211]
[1762565613392,0.66840001,3434.9,3434.8,5.18262211]
[1762565613593,1.15310001,3434.9,3434.8,5.18262211]
[1762565616176,0.00200001,3434.9,3434.8,5.18262211]
[1762565617063,0.00200001,3434.9,3434.8,5.54562211]
[1762565617468,0.46650001,3434.9,3434.8,5.18262211]
[1762565617672,0.95120001,3434.9,3434.8,5.18262211]
[1762565617893,0.46650001,3434.9,3434.8,5.18262211]
[1762565622296,0.46650001,3434.9,3434.8,9.25326856]
[1762565622818,0.00200001,3434.9,3434.8,9.25326856]
[1762565623315,0.48630001,3434.9,3434.8,9.25326856]
[1762565623699,0.00200001,3434.9,3434.8,9.25326856]
[1762565625227,0.00200001,3434.9,3434.8,9.97926856]
[1762565625527,0.00200001,3434.9,3434.8,10.43405188]
[1762565628622,0.00200001,3434.9,3434.8,12.92827671]
[1762565629220,0.00200001,3434.9,3434.8,16.71827671]
[1762565630216,0.00200001,3434.9,3434.8,14.62955588]
[1762565631889,0.00200001,3434.9,3434.8,13.40626856]
[1762565634005,0.00200001,3434.9,3434.8,13.86105188]
[1762565635630,0.00200001,3434.9,3434.8,16.92505188]
[1762565635830,0.00200001,3434.9,3434.8,13.86105188]
[1762565636703,0.002,3435.6,3435.5,2.91078445]
[1762565636904,0.002,3435.6,3435.5,12.06025074]
[1762565637144,0.002,3435.6,3435.5,12.1759429]
[1762565637651,0.002,3435.6,3435.5,12.3941429]
[1762565638027,0.002,3435.6,3435.5,16.91957267]
[1762565638223,0.002,3435.6,3435.5,17.95742797]
[1762565638430,0.002,3435.6,3435.5,18.32042797]
[1762565638937,0.002,3435.6,3435.5,18.72593197]
[1762565639124,0.002,3435.6,3435.5,14.29228552]
[1762565639815,0.4863,3435.6,3435.5,13.0689982]
[1762565640526,0.9599,3435.6,3435.5,13.0689982]
[1762565641755,0.9599,3435.6,3435.5,7.73863975]
[1762565642050,0.9599,3435.6,3435.5,7.96049645]
[1762565643251,0.9599,3435.6,3435.5,5.049712]
[1762565643419,0.9599,3435.6,3435.5,7.96049645]
[1762565643824,0.9599,3435.6,3435.5,4.17049645]
[1762565647626,0.9599,3435.6,3435.5,4.31529645]
[1762565647855,0.9599,3435.6,3435.5,5.44497961]
[1762565648275,0.9599,3435.6,3435.5,2.53419516]
[1762565648494,2.91117153,3435.1,3434.4,2.91271113]
[1762565648756,0.6686,3434.9,3434.4,0.001]
[1762565648962,0.4704,3434.2,3433.2,1.572]
[1762565649129,1.123,3434.1,3433.9,2.91208511]
[1762565649326,0.1982,3434.1,3433.5,2.91242857]
[1762565649549,0.1982,3434.1,3433.3,3.56477843]
[1762565649550,0.4544,3434.0,3433.7,1.259712]
[1762565649860,0.4544,3434.0,3433.7,2.91228329]
[1762565650026,0.4704,3433.8,3433.7,2.91228329]
[1762565650227,0.4704,3433.8,3433.5,1.259712]
[1762565650426,0.4704,3433.6,3433.5,2.91246158]
[1762565650861,0.9248,3433.6,3433.5,2.91246158]
[1762565651631,0.9248,3433.6,3433.4,2.91253115]
[1762565651824,0.9248,3433.5,3433.4,2.91253115]
[1762565652058,0.9248,3433.5,3433.3,2.9126183]
[1762565652249,0.9248,3433.4,3433.3,2.9126183]
[1762565652427,0.9248,3433.4,3433.3,1.259712]
[1762565652659,0.9248,3433.4,3433.3,4.17236163]
[1762565652861,0.9248,3433.4,3433.1,0.005]
[1762565653064,0.4704,3433.2,3433.1,0.005]
[1762565653228,0.4704,3433.2,3433.1,4.17747979]
[1762565653429,0.9248,3433.2,3433.1,4.17747979]
[1762565654268,0.9248,3433.2,3433.1,2.91776779]
[1762565655932,0.9248,3433.2,3433.1,1.264712]
[1762565656138,0.9248,3433.2,3433.1,4.17753131]
[1762565657031,0.9248,3433.2,3433.1,1.264712]
[1762565657999,1.30852807,3433.2,3433.1,1.264712]
[1762565659840,1.30852807,3433.2,3433.1,0.005]
[1762565660117,3.83753447,3433.2,3433.1,0.005]
[1762565661031,4.24303847,3433.2,3433.1,0.005]
[1762565663174,1.330304,3433.2,3433.1,0.005]
[1762565663420,4.24303847,3433.2,3433.1,0.005]
[1762565664170,4.24303847,3433.2,3432.6,0.001]
[1762565664171,2.91315873,3432.7,3432.6,0.001]
[1762565664369,3.83795873,3432.7,3432.6,0.001]
[1762565664828,4.24346273,3432.7,3432.6,0.001]
[1762565664974,2.91349823,3432.3,3432.2,0.001]
[1762565665174,3.966585,3432.3,3432.2,0.001]
[1762565665417,4.826489,3432.3,3432.2,0.001]
[1762565665979,1.91299077,3432.3,3432.2,0.001]
[1762565666187,4.24380223,3432.3,3432.2,0.001]
[1762565666586,0.9248,3432.3,3432.2,0.001]
[1762565666971,3.83829823,3432.3,3432.2,0.001]
[1762565667174,0.9248,3432.3,3432.2,0.001]
[1762565668332,3.83829823,3432.3,3432.2,0.001]
[1762565668625,4.51346282,3432.3,3432.2,0.001]
[1762565668978,1.59996459,3432.3,3432.2,0.001]
[1762565669178,0.9248,3432.3,3432.2,0.001]
[1762565673039,3.83829823,3432.3,3432.2,0.001]
[1762565674404,0.4704,3432.3,3432.2,0.001]
[1762565674602,0.9643,3432.3,3432.2,2.91458312]
[1762565674807,0.1456,3432.8,3432.3,1.259712]
[1762565675035,0.1456,3433.1,3433.0,2.91290416]
[1762565675218,0.1886,3433.4,3432.9,2.91298332]
[1762565675521,0.1456,3433.3,3433.1,2.91277189]
[1762565675721,0.1456,3433.3,3432.7,0.1456]
[1762565675722,0.6395,3433.3,3432.7,0.1456]
[1762565675922,0.6395,3433.3,3432.7,2.91315873]
[1762565675923,0.4141,3432.8,3432.7,2.91315873]
[1762565676148,0.4141,3432.8,3432.7,4.17287073]
[1762565676825,0.908,3432.8,3432.7,1.259712]
[1762565677025,1.30464817,3432.8,3432.5,0.1456]
[1762565677256,1.30464817,3432.8,3432.2,2.91456977]
[1762565677257,0.4987,3432.6,3432.3,1.259712]
[1762565677430,0.4979,3432.3,3432.2,0.001]
[1762565677951,0.9918,3432.3,3432.2,1.260712]
[1762565678112,0.9918,3432.3,3432.2,2.91458312]
[1762565678308,0.9918,3432.3,3432.2,0.001]
[1762565678538,0.9918,3432.3,3432.2,4.17429512]
[1762565680070,0.9918,3432.3,3432.2,1.260712]
[1762565680576,1.1374,3432.3,3432.2,1.260712]
[1762565680922,1.1374,3432.3,3432.2,4.17429512]
[1762565682048,0.6435,3432.3,3432.2,4.17429512]
[1762565682250,0.1456,3432.3,3432.2,4.54029512]
[1762565682765,0.1456,3432.3,3432.2,4.17429512]
[1762565685466,0.1456,3432.7,3432.6,2.91316763]
[1762565686963,3.60148128,3433.5,3432.6,0.366]
[1762565686964,0.4674,3433.5,3432.6,0.366]
[1762565687163,0.1456,3433.1,3433.0,2.91285124]
[1762565687357,3.37809862,3433.3,3432.9,0.1456]
[1762565687528,0.62926603,3433.2,3432.9,0.1456]
[1762565687728,0.4825,3433.0,3432.9,0.1456]
[1762565688060,0.4825,3433.0,3432.9,3.05858901]
[1762565688267,0.9479,3433.0,3432.9,3.05858901]
[1762565688766,0.9479,3433.0,3432.6,1.259712]
[1762565688929,1.0935,3433.0,3432.6,2.91323616]
[1762565689131,0.6281,3433.0,3432.6,1.259712]
[1762565689465,0.4654,3432.9,3432.7,1.259712]
[1762565689861,0.4825,3432.8,3432.7,2.91315873]
[1762565690270,0.4825,3432.8,3432.7,1.259712]
[1762565690472,0.9479,3432.8,3432.5,2.91327041]
[1762565690641,0.9479,3432.8,3432.4,0.1456]
[1762565690642,0.4822,3432.5,3432.4,1.259712]
[1762565691033,0.9476,3432.5,3432.4,1.259712]
[1762565691257,1.0932,3432.5,3432.4,1.259712]
[1762565692373,1.0932,3432.5,3432.2,0.001]
[1762565692682,0.4608,3432.3,3432.2,1.260712]
[1762565693679,0.4608,3432.3,3432.2,2.91458312]
[1762565694584,0.1456,3432.5,3432.3,2.9134229]
[1762565694746,0.1456,3432.5,3432.2,2.91455126]
[1762565694946,0.1456,3432.5,3432.3,2.91345953]
[1762565695983,0.1456,3432.5,3432.2,0.001]
[1762565695984,0.1456,3432.5,3432.4,3.27941335]
[1762565696562,0.4654,3433.0,3432.5,2.91327064]
[1762565696766,0.4825,3432.6,3432.3,2.9134184]
[1762565697088,0.4825,3432.6,3432.2,0.001]
[1762565697259,0.4825,3432.6,3432.5,2.91332847]
[1762565697657,0.4825,3432.6,3432.3,2.91348187]
[1762565697874,0.4825,3432.6,3432.4,2.91339895]
[1762565698210,0.4825,3432.6,3432.2,1.260712]
[1762565698396,0.4825,3432.6,3432.3,2.91345144]
[1762565698753,0.4825,3432.6,3432.4,2.91339589]
[1762565699799,0.4825,3432.6,3432.3,2.91344335]
[1762565700398,0.4606,3432.3,3432.2,0.001]
[1762565700893,0.926,3432.3,3432.2,0.001]
[1762565701419,0.4654,3433.4,3432.2,4.93543095]
[1762565701604,0.4654,3433.4,3432.9,2.91293246]
[1762565701804,0.002,3432.8,3432.5,0.001]
[1762565702004,0.4825,3432.6,3432.5,2.91430639]
[1762565702222,0.4825,3432.6,3432.5,4.17401839]
[1762565702387,0.4825,3432.6,3432.5,1.260712]
[1762565702585,0.975,3432.6,3432.5,0.001]
[1762565704222,4.56856336,3432.6,3432.5,0.001]
[1762565704403,1.65531976,3432.6,3432.5,0.001]
[1762565704606,4.56856336,3432.6,3432.5,0.001]
[1762565706223,1.65531976,3432.6,3432.5,0.001]
[1762565707740,0.4825,3432.6,3432.5,0.001]
[1762565707888,0.4832,3432.6,3432.5,0.001]
[1762565708089,3.8889436,3432.6,3432.5,0.001]
[1762565708999,0.9757,3432.6,3432.5,0.001]
[1762565709435,3.8889436,3432.6,3432.5,0.001]
[1762565709633,4.56935019,3432.6,3432.5,0.001]
[1762565713599,5.66185419,3432.6,3432.5,0.001]
[1762565715537,4.97485419,3432.6,3432.5,0.001]
[1762565715700,0.4832,3432.6,3432.5,0.001]
[1762565716122,2.91316093,3432.7,3432.5,0.001]
[1762565716330,2.8635236,3432.6,3432.5,0.001]
[1762565716547,3.3467236,3432.6,3432.5,0.001]
[1762565716749,0.4832,3432.6,3432.5,0.001]
[1762565718550,0.47985,3432.6,3432.5,0.001]
[1762565718712,3.3930936,3432.6,3432.5,0.001]
[1762565718912,0.47985,3432.6,3432.5,0.001]
[1762565719317,3.8855936,3432.6,3432.5,0.001]
[1762565720043,0.97235,3432.6,3432.5,0.001]
[1762565721049,0.002,3432.7,3432.5,0.3704]
[1762565721238,0.1456,3432.6,3432.5,0.3704]
[1762565721552,0.1456,3432.6,3432.5,0.62083781]
[1762565721751,0.1456,3432.6,3432.5,3.28372847]
[1762565721959,0.002,3432.7,3432.6,4.1729556]
[1762565722122,0.002,3432.7,3432.6,4.94088803]
[1762565722317,0.002,3432.7,3432.6,4.9117556]
[1762565723051,0.00132,3433.1,3432.6,1.259712]
[1762565723230,0.00132,3433.1,3432.6,2.04651566]
[1762565723434,0.00132,3433.1,3432.7,2.91308462]
[1762565724122,0.00132,3433.1,3432.8,2.91307174]
[1762565724357,3.40007727,3433.3,3432.7,2.91313952]
[1762565724659,3.40011478,3433.3,3432.6,1.259712]
[1762565724824,0.48741,3433.3,3432.9,2.91295798]
[1762565725226,0.002,3433.5,3433.0,2.91285539]
[1762565726246,0.4925,3433.5,3433.0,2.91285539]
[1762565726642,3.40500942,3433.5,3432.6,1.634212]
[1762565726842,3.40500942,3433.5,3432.8,2.91299734]
[1762565727069,3.40500942,3433.5,3432.9,2.91298042]
[1762565728565,0.4925,3433.5,3433.0,2.91290416]
[1762565729269,0.4832,3433.1,3432.7,2.91314111]
[1762565729566,0.4832,3433.1,3432.7,0.41738531]
[1762565729770,0.9757,3433.1,3432.8,2.91306807]
[1762565730272,0.4164,3432.9,3432.7,0.41738531]
[1762565730572,0.4164,3432.9,3432.6,1.259712]
[1762565730761,0.4164,3432.9,3432.6,4.17290398]
[1762565730956,0.4164,3432.9,3432.7,2.91315747]
[1762565731784,0.41456,3432.9,3432.7,2.91315747]
[1762565732182,0.41456,3432.9,3432.6,1.259712]
[1762565732495,0.90466,3432.9,3432.6,1.259712]
[1762565732651,0.1456,3432.8,3432.5,0.001]
[1762565732852,0.1456,3432.8,3432.5,2.91430676]
[1762565733884,0.1456,3432.8,3432.5,0.001]
[1762565734049,0.4833,3432.6,3432.5,0.001]
[1762565736676,0.1456,3432.8,3432.5,0.001]
[1762565736980,0.6357,3432.8,3432.5,0.001]
[1762565737489,0.4833,3432.6,3432.5,0.001]
[1762565737795,3.3965436,3432.6,3432.5,0.001]
[1762565737956,3.8866436,3432.6,3432.5,0.001]
[1762565740212,0.4833,3432.6,3432.5,0.001]
[1762565740421,3.31840976,3433.0,3432.5,0.3799]
[1762565740582,0.002,3433.1,3432.6,2.91318809]
[1762565740781,0.002,3433.1,3432.6,2.91323648]
[1762565741013,0.002,3433.1,3433.0,0.3789]
[1762565742483,0.002,3433.1,3433.0,3.29180416]